bitfinex/quotes_ETHUSD_20250622
["timestamp","ask_amount","ask_price","bid_price","bid_amount"]
[1750626471722,1.1741,2194.7,2194.1,0.45578372]
[1750626471723,1.1741,2194.7,2194.5,4.55665899]
[1750626471892,1.1741,2195.1,2194.5,4.55665899]
[1750626472094,1.1741,2195.1,2194.6,4.55661011]
[1750626472294,1.1741,2195.1,2194.5,4.55673551]
[1750626472602,1.1741,2195.1,2194.5,5.01240906]
[1750626472921,1.1741,2195.1,2194.7,4.55642961]
[1750626473123,1.1741,2195.1,2194.6,4.60216182]
[1750626473323,1.1741,2195.1,2194.5,0.45567355]
[1750626473324,1.1741,2195.1,2194.8,4.55619943]
[1750626475128,1.1741,2195.1,2194.7,14.55634795]
[1750626475302,1.1741,2195.1,2194.8,1.91129763]
[1750626475822,8.362,2195.9,2194.8,1.91129763]
[1750626475823,3.6952,2195.5,2194.8,1.91129763]
[1750626476197,3.6952,2195.5,2194.8,6.46745101]
[1750626477530,3.6952,2195.5,2194.9,4.55601621]
[1750626478035,1.1741,2196.2,2195.0,1.2105]
[1750626478340,1.1741,2197.3,2196.2,10.0]
[1750626478496,0.2244324,2197.4,2197.2,4.55124704]
[1750626478697,0.2244324,2197.4,2197.1,11.12350195]
[1750626478898,1.2322,2197.3,2196.1,1.2105]
[1750626479097,0.0581,2197.2,2196.2,4.55331936]
[1750626479332,0.0581,2197.2,2196.4,4.5527489]
[1750626479533,0.0581,2197.2,2196.1,11.67537545]
[1750626479696,1.1741,2197.1,2196.4,4.55288318]
[1750626480130,1.1741,2197.1,2196.5,4.55263294]
[1750626480348,1.1741,2197.1,2196.5,0.91512468]
[1750626480635,1.1741,2197.1,2196.4,4.55287538]
[1750626480860,1.1741,2197.1,2196.1,10.46487545]
[1750626480998,1.1741,2197.1,2196.3,4.55308182]
[1750626481950,1.1741,2197.1,2196.1,10.46487545]
[1750626482112,0.0581,2197.0,2196.2,4.55317718]
[1750626482294,0.0581,2197.0,2196.3,0.50180526]
[1750626482500,0.0581,2197.0,2196.1,2.462]
[1750626482951,0.0581,2197.0,2195.7,16.88820102]
[1750626482952,0.0581,2196.4,2195.1,2.602448]
[1750626483236,0.0581,2196.2,2195.2,4.55525199]
[1750626483529,1.1741,2196.1,2195.3,4.600729]
[1750626483759,0.55,2196.0,2195.2,1.37240433]
[1750626483902,0.55,2196.0,2195.1,0.46152513]
[1750626484108,0.0581,2195.9,2195.0,5.0113906]
[1750626484404,0.0581,2195.9,2195.1,4.5555972]
[1750626485223,0.0581,2195.9,2195.2,4.55537122]
[1750626485425,0.0581,2195.9,2195.1,4.55553102]
[1750626485646,0.0581,2195.9,2195.1,5.7584213]
[1750626485941,0.0581,2195.9,2195.2,4.55538623]
[1750626486142,1.1741,2196.1,2195.4,4.55485437]
[1750626486306,1.1741,2196.1,2195.3,0.04554786]
[1750626486502,1.1741,2196.1,2195.1,1.65447936]
[1750626486706,1.1741,2196.1,2195.2,1.25655305]
[1750626486936,1.1741,2196.1,2195.3,4.55511676]
[1750626487434,1.1741,2196.1,2195.4,0.04554495]
[1750626487655,1.1741,2196.1,2195.2,1.2110081]
[1750626487870,1.1741,2196.1,2195.3,4.55504306]
[1750626488025,1.1741,2196.1,2195.4,0.04554493]
[1750626488355,1.1741,2196.1,2195.4,4.60048345]
[1750626488653,1.1741,2196.1,2195.4,0.04554493]
[1750626489556,1.1741,2195.8,2195.2,10.0]
[1750626489851,1.1741,2195.8,2195.1,1.65447936]
[1750626490420,1.1741,2195.8,2195.1,0.45158908]
[1750626490636,0.6081,2195.7,2194.5,1.2036]
[1750626490822,11.67350195,2196.2,2194.5,7.01884666]
[1750626490823,0.0581,2195.4,2194.5,7.01884666]
[1750626491020,1.1741,2195.6,2194.5,7.01884666]
[1750626491021,1.1741,2195.6,2194.6,11.16905864]
[1750626491359,1.1741,2195.6,2194.8,4.55604066]
[1750626491531,0.55,2195.5,2194.8,2.02357868]
[1750626491737,0.0581,2195.4,2194.6,4.55663902]
[1750626491925,0.0581,2195.4,2194.5,14.5568461]
[1750626492127,0.0581,2195.4,2194.7,4.55642669]
[1750626492458,0.0581,2195.4,2194.6,4.55648335]
[1750626492459,1.1741,2195.2,2194.6,4.55648335]
[1750626492776,0.0581,2195.1,2194.3,4.55721952]
[1750626492927,0.0581,2195.1,2194.4,10.45572195]
[1750626493279,0.0581,2195.1,2194.4,0.45572195]
[1750626493280,0.55,2195.0,2194.4,0.45572195]
[1750626493552,2.27292863,2195.0,2194.3,15.01339458]
[1750626493726,2.27292863,2195.0,2194.4,4.55691659]
[1750626493926,1.70999647,2194.9,2194.4,4.55691659]
[1750626494123,1.77029647,2194.9,2194.4,4.55691659]
[1750626494528,1.72248083,2194.8,2194.3,14.55717184]
[1750626494753,1.72248083,2194.8,2194.3,16.46863076]
[1750626494955,1.72248083,2194.8,2194.4,0.045567]
[1750626495124,1.72248083,2194.8,2194.3,16.92883754]
[1750626495330,1.72248083,2194.8,2194.4,0.0455639]
[1750626495839,1.72248083,2194.8,2194.7,14.5564314]
[1750626496027,1.72248083,2194.8,2194.7,17.70099864]
[1750626496226,1.72248083,2194.8,2194.7,28.82450059]
[1750626497241,1.72248083,2194.8,2194.7,17.70099864]
[1750626499964,1.72248083,2194.8,2194.3,0.46012772]
[1750626500271,1.2335,2194.7,2193.6,7.147496]
[1750626500468,1.2335,2194.7,2194.2,4.55730423]
[1750626500643,1.2335,2194.7,2193.8,11.12350195]
[1750626500644,1.83456906,2194.6,2194.3,4.55706643]
[1750626500842,1.83456906,2194.6,2194.2,4.55739797]
[1750626501150,1.83456906,2194.6,2193.9,7.801]
[1750626501351,1.83456906,2194.6,2194.0,2.93801688]
[1750626501532,1.83456906,2194.6,2194.0,2.8924502]
[1750626501943,1.83456906,2194.6,2194.3,4.5572394]
[1750626502141,1.83456906,2194.6,2194.1,4.5576774]
[1750626502639,1.89486906,2194.6,2194.1,4.5576774]
[1750626503038,1.83507176,2194.5,2194.1,4.5576774]
[1750626503242,1.83507176,2194.5,2194.0,7.45024821]
[1750626503437,1.83507176,2194.5,2194.0,2.8924502]
[1750626503676,1.83507176,2194.5,2194.0,7.45031973]
[1750626503863,1.83507176,2194.5,2194.1,4.5576774]
[1750626504366,1.83507176,2194.5,2194.2,4.55744467]
[1750626504963,1.83507176,2194.5,2194.0,7.45031973]
[1750626504964,0.0603,2194.4,2194.0,4.55773184]
[1750626505169,0.0603,2194.4,2193.9,0.46105435]
[1750626505363,0.0603,2194.3,2193.9,4.55804701]
[1750626505742,1.2335,2194.2,2193.9,4.55804701]
[1750626505947,1.2335,2194.2,2193.8,14.55821473]
[1750626506142,1.2335,2194.2,2193.9,4.55808052]
[1750626506143,1.76039169,2194.1,2193.9,4.55808052]
[1750626506351,1.76039169,2194.1,2194.0,4.55788514]
[1750626506578,1.76039169,2194.1,2194.0,4.60346064]
[1750626506771,1.76039169,2194.1,2193.9,4.55805532]
[1750626507159,1.76039169,2194.1,2194.0,4.55788514]
[1750626507365,1.76039169,2194.1,2194.0,26.98128709]
[1750626507539,0.0603,2195.5,2194.0,26.98128709]
[1750626507540,1.1732,2195.3,2194.5,10.0]
[1750626507747,1.67533458,2194.8,2194.5,4.5568435]
[1750626507944,1.67533458,2194.8,2194.5,4.55679135]
[1750626508165,1.67533458,2194.8,2194.6,4.55649757]
[1750626508364,1.67533458,2194.8,2194.7,4.5564314]
[1750626509453,1.67533458,2194.8,2194.6,6.4678981]
[1750626509675,1.67533458,2194.8,2194.7,4.5564314]
[1750626509973,1.67533458,2194.8,2194.6,6.46788865]
[1750626510373,1.67533458,2194.8,2194.7,4.5564314]
[1750626510684,1.67533458,2194.8,2194.6,6.46788943]
[1750626511176,1.67533458,2194.8,2194.1,5.46913403]
[1750626511177,2.90883458,2194.8,2194.1,5.46913403]
[1750626511377,2.90883458,2194.8,2194.1,13.26913403]
[1750626511584,1.83207623,2194.7,2194.2,14.55745407]
[1750626511788,1.89237623,2194.7,2194.3,4.55724336]
[1750626512083,1.89237623,2194.7,2194.2,4.55746336]
[1750626512376,1.8070725,2194.6,2194.2,7.3401517]
[1750626512881,0.0603,2194.5,2193.9,12.81351711]
[1750626513083,0.0603,2194.5,2193.9,12.35697445]
[1750626513291,1.82341625,2194.5,2194.0,10.04557179]
[1750626513478,1.82341625,2194.5,2194.1,4.55754198]
[1750626513676,1.82341625,2194.5,2194.2,0.0455695]
[1750626514962,1.82341625,2194.5,2194.3,4.55726199]
[1750626515650,1.82341625,2194.5,2194.4,4.55705432]
[1750626515942,1.82341625,2194.5,2194.2,7.799]
[1750626516385,1.82341625,2194.5,2194.2,12.3564492]
[1750626516586,1.82341625,2194.5,2194.3,2.61713761]
[1750626517686,1.88371625,2194.5,2193.9,10.44595284]
[1750626517997,1.2335,2194.4,2193.8,4.55818792]
[1750626518295,2.82743412,2194.4,2193.8,10.0]
[1750626518644,1.54586424,2194.3,2193.9,4.5579797]
[1750626518891,1.54586424,2194.3,2194.0,1.45579797]
[1750626519107,0.0603,2194.2,2193.8,10.0]
[1750626519450,1.55943218,2194.2,2193.8,0.45183745]
[1750626519792,0.0603,2194.1,2193.7,4.55850577]
[1750626520152,1.62194145,2194.1,2193.7,4.55850577]
[1750626520668,1.54980408,2194.0,2193.8,4.55829054]
[1750626521000,1.54980408,2194.0,2193.8,5.0125062]
[1750626523193,1.54980408,2194.0,2193.9,4.60367139]
[1750626523397,1.54980408,2194.0,2193.8,7.74926243]
[1750626523992,1.54980408,2194.0,2193.8,7.74924334]
[1750626524358,1.54980408,2194.0,2193.8,3.19103203]
[1750626524553,1.54980408,2194.0,2193.8,5.05809051]
[1750626524786,1.54980408,2194.0,2193.9,4.55809289]
[1750626525119,1.54980408,2194.0,2193.8,5.05800818]
[1750626525327,1.54980408,2194.0,2193.9,4.55809289]
[1750626529404,1.54980408,2194.0,2193.8,0.45421566]
[1750626529608,1.54980408,2194.0,2193.8,4.55825714]
[1750626529808,1.54980408,2194.0,2193.8,7.24965409]
[1750626530107,1.54980408,2194.0,2193.9,4.55809289]
[1750626531340,1.54980408,2194.0,2193.7,10.0]
[1750626531634,1.54980408,2194.0,2193.9,10.0]
[1750626531799,1.54980408,2194.0,2193.4,27.07220904]
[1750626532000,1.60730408,2194.0,2193.5,17.793]
[1750626532208,1.60730408,2194.0,2193.7,4.55837391]
[1750626532527,1.49270354,2193.9,2193.8,14.55830066]
[1750626533125,1.49270354,2193.9,2193.8,10.0]
[1750626533547,2.68900354,2193.9,2193.3,7.793]
[1750626533748,0.6075,2193.8,2193.2,0.45277817]
[1750626534049,0.55,2193.2,2192.8,1.370366]
[1750626534406,0.55,2193.0,2192.8,1.370366]
[1750626534601,1.54201372,2193.1,2192.8,0.4482148]
[1750626534848,1.48617458,2192.9,2192.6,14.56066172]
[1750626535047,1.48617458,2192.9,2192.6,18.73403376]
[1750626536360,1.54367458,2192.9,2192.6,18.73403376]
[1750626536716,1.53049182,2192.8,2192.6,18.73403376]
[1750626537245,1.53049182,2192.8,2192.7,4.5605874]
[1750626537450,1.53049182,2192.8,2192.7,5.01290923]
[1750626537651,1.53049182,2192.8,2192.7,7.56809122]
[1750626537855,1.53049182,2192.8,2192.7,3.00750382]
[1750626538328,1.58799182,2192.8,2192.6,10.0]
[1750626538746,1.59398618,2192.7,2192.6,4.5607954]
[1750626539359,1.65148618,2192.7,2192.3,12.35433713]
[1750626539521,1.59398618,2192.7,2192.6,4.5607954]
[1750626539862,1.1388,2193.4,2192.8,10.0]
[1750626540058,1.1388,2193.4,2193.1,10.0]
[1750626540267,1.1388,2193.4,2192.7,10.0]
[1750626540268,0.55,2193.2,2192.7,10.0]
[1750626540470,0.0575,2193.2,2192.7,10.0]
[1750626540771,0.55,2193.3,2192.7,14.56046204]
[1750626541064,0.0575,2193.2,2192.8,10.0]
[1750626541369,0.55,2193.3,2192.8,14.56032717]
[1750626541676,0.0575,2193.2,2192.8,10.0]
[1750626541892,1.1388,2193.4,2192.9,18.83760008]
[1750626542041,1.1388,2194.1,2193.4,10.0]
[1750626542377,0.0575,2194.0,2193.7,4.55849748]
[1750626542677,0.0575,2194.0,2193.7,4.55839168]
[1750626542886,1.1388,2194.1,2193.7,1.15331336]
[1750626543180,1.1388,2194.1,2193.8,0.04557681]
[1750626543360,1.1388,2194.1,2193.9,4.55807412]
[1750626543670,1.1963,2194.4,2194.0,10.0]
[1750626543920,0.0575,2194.3,2194.0,10.0]
[1750626544052,1.1388,2194.4,2194.0,14.55782035]
[1750626544249,1.1963,2194.4,2194.0,10.0]
[1750626544472,1.1963,2194.4,2194.0,14.55787309]
[1750626544666,1.1963,2194.4,2194.0,10.0]
[1750626545373,1.1963,2194.4,2194.0,11.27375848]
[1750626545582,1.1963,2194.4,2194.0,15.83160396]
[1750626545741,1.1963,2194.4,2194.0,16.28564512]
[1750626545936,0.55,2194.3,2194.0,10.45404116]
[1750626546136,0.55,2194.3,2193.7,8.94431336]
[1750626546137,0.0575,2194.2,2193.8,4.55828781]
[1750626546341,0.0575,2194.2,2193.9,10.0]
[1750626546749,0.55,2194.1,2193.7,10.0]
[1750626546970,0.0575,2194.1,2193.7,10.45348772]
[1750626547174,0.0575,2194.1,2193.7,15.01191911]
[1750626547477,0.0575,2194.1,2193.7,16.96897788]
[1750626547695,0.55,2194.1,2193.7,0.45348772]
[1750626547881,1.1388,2194.0,2193.5,10.0]
[1750626548040,1.1388,2194.0,2193.4,4.55899397]
[1750626548041,0.6075,2193.8,2193.2,4.55935396]
[1750626548563,0.0575,2193.5,2192.6,2.4065]
[1750626548749,0.55,2193.4,2192.9,4.56015761]
[1750626549071,0.6075,2193.2,2192.7,14.56050241]
[1750626549376,0.6075,2193.0,2192.7,0.45394399]
[1750626549575,0.55,2193.0,2192.5,4.60656435]
[1750626549888,0.0575,2192.9,2192.5,4.60656435]
[1750626550369,0.0575,2192.9,2192.6,10.0]
[1750626550938,0.0575,2192.9,2192.4,4.56120846]
[1750626551139,0.55,2193.0,2192.4,4.56120846]
[1750626551453,0.0575,2192.9,2192.4,10.0]
[1750626551649,1.1388,2193.1,2192.2,14.56155152]
[1750626551854,0.55,2192.8,2192.2,0.4611987]
[1750626552057,0.0575,2192.7,2192.2,10.0]
[1750626552299,0.0575,2192.5,2191.4,3.7067]
[1750626552590,0.55,2192.2,2191.8,10.0]
[1750626552794,0.55,2192.0,2191.4,0.46466636]
[1750626553087,0.0575,2191.8,2191.0,4.56399188]
[1750626553292,0.55,2191.5,2190.6,1.1388]
[1750626553459,0.55,2191.5,2190.5,2.439]
[1750626553460,0.55,2191.3,2190.7,4.56467279]
[1750626553652,1.1963,2191.2,2190.8,4.56452053]
[1750626553855,0.0566,2191.1,2190.7,4.56468296]
[1750626554056,0.0566,2191.1,2190.7,5.01954806]
[1750626554281,0.0566,2191.1,2190.7,0.4548651]
[1750626554470,0.0566,2191.1,2190.4,1.2677]
[1750626554666,0.55,2191.0,2190.0,1.2677]
[1750626554994,0.0566,2190.9,2190.5,10.0]
[1750626555217,0.0566,2190.9,2190.3,0.46751419]
[1750626555392,3.5778,2191.2,2190.1,4.56587392]
[1750626555393,1.1388,2190.7,2190.1,4.56587392]
[1750626555561,0.55,2190.6,2190.1,4.56587392]
[1750626555759,0.0566,2190.5,2190.3,10.0]
[1750626555989,0.0566,2190.5,2190.2,4.56578252]
[1750626556293,0.0566,2190.5,2189.7,1.2677]
[1750626556294,0.0566,2190.5,2189.8,0.04565516]
[1750626556502,0.0566,2190.5,2190.3,10.0]
[1750626556699,1.1388,2191.5,2190.0,28.91841132]
[1750626556920,0.0566,2191.4,2191.1,4.56379562]
[1750626557066,0.0566,2191.4,2190.4,2.424]
[1750626557412,0.0566,2191.4,2190.6,14.56489434]
[1750626557578,0.55,2191.4,2190.8,10.0]
[1750626558162,0.0566,2191.4,2190.3,21.13041132]
[1750626558358,1.1388,2191.5,2190.7,1.2944]
[1750626558663,1.1954,2191.5,2190.7,3.7184]
[1750626558867,1.1954,2191.5,2191.2,4.56370668]
[1750626559474,1.1082,2191.8,2191.3,0.04563429]
[1750626559682,1.1082,2191.8,2191.3,10.0]
[1750626559883,0.0566,2191.7,2191.5,10.0]
[1750626560162,0.0566,2191.7,2190.8,10.0]
[1750626560362,1.1648,2191.8,2190.9,1.27704505]
[1750626560566,0.0566,2191.7,2191.3,10.0]
[1750626560763,1.6582,2191.5,2191.0,10.0]
[1750626560994,1.1082,2191.5,2191.0,10.0]
[1750626561202,0.55,2191.3,2190.9,0.46395992]
[1750626561497,0.6066,2191.3,2190.8,10.0]
[1750626561699,0.0566,2191.3,2190.8,10.0]
[1750626562000,0.0566,2191.3,2190.6,4.56493241]
[1750626562195,0.0566,2191.3,2190.7,10.0]
[1750626562397,0.0566,2191.3,2190.6,5.03204572]
[1750626562398,0.0566,2191.3,2190.6,0.46711331]
[1750626562603,0.55,2191.1,2190.1,1.282]
[1750626562783,0.55,2191.1,2189.8,2.425]
[1750626562784,0.6066,2190.9,2189.8,3.707]
[1750626563097,0.6066,2190.9,2190.2,10.0]
[1750626563476,0.6066,2190.9,2190.2,4.56576918]
[1750626563676,0.55,2190.9,2190.4,10.0]
[1750626563904,0.55,2190.7,2190.4,10.0]
[1750626564403,0.6066,2190.7,2190.3,10.0]
[1750626564602,1.1082,2190.8,2190.1,0.46734182]
[1750626564802,0.6066,2190.7,2190.4,10.0]
[1750626564972,0.55,2190.7,2190.2,10.0]
[1750626565173,0.0566,2190.6,2190.1,10.0]
[1750626565430,0.0566,2190.6,2190.2,4.56577677]
[1750626565975,0.0566,2190.6,2190.4,10.0]
[1750626566383,0.0566,2190.6,2190.1,0.46442429]
[1750626566706,0.0566,2191.4,2190.4,4.56537618]
[1750626566909,0.0566,2191.8,2191.2,4.56370938]
[1750626567207,1.1648,2191.6,2190.8,1.1657]
[1750626567402,1.1648,2191.6,2190.9,10.0]
[1750626567589,1.1082,2191.6,2191.3,10.0]
[1750626568199,1.1082,2191.6,2191.3,4.56347954]
[1750626568399,1.1082,2191.6,2191.1,14.56379578]
[1750626568600,1.1082,2191.6,2191.2,4.56350176]
[1750626568802,1.1082,2191.6,2191.1,14.56383188]
[1750626568978,1.1082,2191.6,2191.2,14.56365602]
[1750626569472,1.1082,2191.6,2191.1,14.56383098]
[1750626569678,1.1082,2191.6,2191.2,4.56368496]
[1750626569993,0.55,2191.8,2191.3,0.04563044]
[1750626570219,0.55,2191.8,2191.4,4.56326888]
[1750626570400,1.1082,2191.9,2191.5,10.04562583]
[1750626570603,1.1082,2191.9,2191.5,14.56307282]
[1750626570908,2.425,2192.1,2191.5,4.56308464]
[1750626571110,2.425,2192.1,2191.7,4.5626596]
[1750626571612,2.425,2192.1,2191.9,4.56217138]
[1750626571818,1.1082,2192.2,2191.7,0.44906689]
[1750626572107,1.1082,2192.2,2191.9,10.0]
[1750626572409,1.1082,2192.2,2192.0,4.56202661]
[1750626572606,14.4952,2192.5,2192.0,4.56202661]
[1750626572908,14.4952,2192.5,2192.1,0.04561483]
[1750626573085,12.0702,2192.5,2191.7,4.56260509]
[1750626573284,12.0702,2192.5,2191.9,4.56225168]
[1750626573508,12.0702,2192.5,2191.8,0.5]
[1750626573704,12.0702,2192.5,2192.0,4.56193326]
[1750626573902,12.0702,2192.5,2192.1,4.56183205]
[1750626574105,12.0702,2192.5,2192.0,5.02361544]
[1750626574414,12.0702,2192.5,2192.0,4.56198703]
[1750626574620,12.0702,2192.5,2191.9,10.0]
[1750626575120,12.0702,2192.5,2191.9,14.56223196]
[1750626575296,12.0702,2192.5,2191.9,10.0]
[1750626575497,12.0702,2192.5,2191.9,14.56224628]
[1750626576083,12.0702,2192.5,2191.9,10.0]
[1750626576797,12.0702,2192.5,2191.9,14.56211865]
[1750626576991,12.0702,2192.5,2192.0,4.60759054]
[1750626577206,1.1082,2192.9,2192.2,10.0]
[1750626577382,8.8922,2192.9,2192.3,0.04560781]
[1750626577792,8.8922,2192.9,2192.3,14.6070157]
[1750626577992,0.55,2192.7,2192.0,11.1932]
[1750626578219,0.55,2192.7,2192.0,16.21858998]
[1750626578418,0.55,2192.3,2191.9,0.4594813]
[1750626578597,0.55,2192.3,2191.8,4.5624405]
[1750626578797,0.6066,2192.3,2191.6,11.1932]
[1750626579095,0.6066,2192.3,2191.6,5.75607638]
[1750626579306,0.6066,2192.3,2191.9,10.0]
[1750626579513,0.6066,2192.3,2191.8,4.56245772]
[1750626580097,1.1082,2192.5,2191.7,0.57560764]
[1750626580298,1.1082,2192.5,2191.8,4.56246007]
[1750626580505,1.1082,2192.5,2192.0,10.0]
[1750626580825,1.1082,2192.5,2192.1,0.04561353]
[1750626581021,1.1082,2192.5,2191.8,14.56233498]
[1750626581022,1.1648,2192.5,2191.8,14.56233498]
[1750626581543,0.55,2192.2,2191.0,12.32361132]
[1750626581740,1.1082,2191.7,2191.1,4.5637936]
[1750626582032,1.1082,2191.7,2190.7,12.1592]
[1750626582234,1.1082,2192.1,2191.6,4.56281224]
[1750626582434,1.1648,2192.1,2191.4,10.0]
[1750626582811,0.55,2192.0,2191.3,14.56343166]
[1750626583048,0.55,2192.0,2190.8,5.78029139]
[1750626583049,0.55,2191.3,2190.2,1.1772]
[1750626583329,0.55,2191.3,2190.3,0.22854]
[1750626583511,0.55,2191.3,2190.4,4.56523042]
[1750626583707,0.55,2191.3,2190.3,0.69035666]
[1750626583708,0.55,2190.9,2190.3,0.46181666]
[1750626583931,0.55,2190.9,2190.2,1.1772]
[1750626584110,0.55,2190.9,2190.0,2.425]
[1750626584296,0.55,2190.9,2190.0,3.69849941]
[1750626584498,0.55,2190.9,2190.1,10.0]
[1750626584702,1.1082,2190.7,2190.0,1.27349941]
[1750626584902,1.1082,2190.7,2190.1,4.56584543]
[1750626585123,1.1082,2190.7,2190.2,0.04565149]
[1750626585321,1.1082,2190.7,2190.1,4.56584543]
[1750626585537,1.1082,2190.7,2190.2,0.04565149]
[1750626585735,1.1666,2190.7,2190.1,4.56584543]
[1750626585904,1.1666,2190.7,2190.2,4.6114443]
[1750626586235,1.1666,2190.7,2190.2,10.04565149]
[1750626586437,1.1666,2190.7,2190.2,10.0]
[1750626587039,1.1666,2190.7,2190.2,4.56577255]
[1750626587244,1.1666,2190.7,2190.2,4.61142406]
[1750626587613,1.1666,2190.7,2190.2,0.04565151]
[1750626588537,1.1666,2190.7,2190.0,15.02721533]
[1750626588724,1.1666,2190.7,2190.0,14.56613577]
[1750626589340,1.1666,2190.7,2190.1,4.56599571]
[1750626589551,1.1666,2190.7,2190.1,4.61164722]
[1750626589715,1.1082,2190.7,2190.1,1.95888883]
[1750626590031,1.1082,2190.7,2190.1,1.91323732]
[1750626590812,0.55,2190.6,2190.0,10.44798288]
[1750626591013,0.55,2190.6,2190.0,10.0]
[1750626591238,0.55,2190.4,2189.8,4.56653808]
[1750626591424,0.55,2190.4,2189.7,4.5667087]
[1750626591627,0.55,2190.2,2189.3,1.1691]
[1750626591945,0.6084,2190.2,2189.4,10.0]
[1750626592245,0.55,2190.1,2189.3,4.56763545]
[1750626592434,0.55,2189.9,2189.5,10.0]
[1750626592634,8.331,2190.1,2189.5,4.56707372]
[1750626592841,8.331,2190.1,2189.4,5.01316132]
[1750626593208,8.331,2190.1,2189.4,15.01316132]
[1750626593550,8.331,2190.1,2189.5,10.04566513]
[1750626593848,8.331,2190.1,2189.5,10.0]
[1750626594717,8.331,2190.1,2189.5,4.56724317]
[1750626594937,8.331,2190.1,2189.6,4.56690156]
[1750626595142,8.331,2190.1,2189.4,10.0]
[1750626595346,8.331,2190.1,2189.0,15.73734432]
[1750626595655,8.331,2190.1,2189.4,4.56737241]
[1750626595944,8.331,2190.1,2189.6,10.0]
[1750626596151,8.331,2190.1,2189.2,10.0]
[1750626596152,0.55,2189.9,2189.2,10.0]
[1750626596332,1.0543,2189.8,2189.4,10.0]
[1750626596509,0.0584,2189.7,2189.2,14.56787473]
[1750626597046,0.0584,2189.7,2189.0,5.73736254]
[1750626597047,0.6084,2189.7,2189.0,4.56824]
[1750626597276,0.55,2189.3,2188.7,0.2244324]
[1750626597417,0.55,2189.3,2188.8,4.56858039]
[1750626597611,0.6084,2189.3,2188.9,10.0]
[1750626597852,0.6084,2189.3,2188.7,14.79328326]
[1750626598054,0.6084,2189.3,2188.9,10.0]
[1750626598319,0.0584,2189.4,2189.0,4.56814895]
[1750626598662,7.8394,2189.5,2189.0,10.0]
[1750626598817,0.55,2189.4,2188.7,0.2244324]
[1750626599020,0.0584,2189.3,2188.7,0.2244324]
[1750626599447,0.0584,2189.3,2188.8,10.0]
[1750626599646,0.0584,2189.2,2188.8,10.0]
[1750626600352,0.6084,2189.0,2188.7,0.2244324]
[1750626600552,1.0543,2189.1,2188.7,4.79332055]
[1750626600758,1.0543,2189.1,2188.7,1.82282411]
[1750626601054,1.0543,2189.1,2188.7,4.79322079]
[1750626601267,0.6084,2189.0,2188.7,0.2244324]
[1750626601424,0.0584,2188.9,2188.7,0.2244324]
[1750626602070,1.0543,2189.1,2188.7,0.2244324]
[1750626602419,1.0543,2189.1,2188.7,4.7932284]
[1750626602646,0.0584,2189.0,2188.7,0.2244324]
[1750626602918,0.55,2188.9,2188.7,0.2244324]
[1750626603119,0.6084,2188.8,2188.7,0.2244324]
[1750626606530,1.6627,2188.8,2188.7,0.2244324]
[1750626607079,0.0584,2189.0,2188.7,0.2244324]
[1750626608327,1.0543,2189.1,2188.7,0.2244324]
[1750626608963,0.6084,2189.0,2188.7,0.2244324]
[1750626609367,0.0584,2188.9,2188.7,0.2244324]
[1750626609684,0.55,2189.0,2188.7,0.2244324]
[1750626609832,0.55,2188.8,2188.7,0.2244324]
[1750626610147,2.4714,2188.8,2188.7,0.2244324]
[1750626610351,1.0543,2188.9,2188.7,0.2244324]
[1750626610530,0.0584,2189.1,2188.7,0.2244324]
[1750626610866,0.0584,2189.1,2188.7,10.2244324]
[1750626611034,2.413,2189.3,2188.9,4.56846083]
[1750626611237,1.0543,2189.5,2189.1,4.56792883]
[1750626611440,11.0304,2189.8,2188.7,12.83419287]
[1750626611441,1.0543,2189.7,2188.7,0.2244324]
[1750626611646,0.55,2189.4,2188.7,0.2244324]
[1750626611826,0.55,2189.2,2188.7,0.2244324]
[1750626612032,0.6084,2189.4,2188.7,0.2244324]
[1750626612250,0.55,2189.3,2188.7,0.2244324]
[1750626612456,0.0584,2189.2,2188.7,0.2244324]
[1750626612655,0.0584,2189.3,2188.7,0.2244324]
[1750626613041,2.4714,2189.3,2188.7,0.2244324]
[1750626613256,0.55,2189.2,2188.7,0.2244324]
[1750626613459,0.6084,2189.2,2188.7,0.2244324]
[1750626615428,0.6084,2189.2,2188.7,10.2244324]
[1750626616166,0.6084,2189.2,2188.7,0.2244324]
[1750626616167,0.0612,2189.1,2188.7,0.2244324]
[1750626616672,0.0612,2189.1,2188.7,0.27011595]
[1750626616866,0.0612,2189.1,2188.7,10.27011595]
[1750626617169,0.0612,2189.1,2188.7,10.2244324]
[1750626617373,0.0612,2189.1,2188.7,0.2244324]
[1750626617547,0.55,2189.2,2188.7,0.2244324]
[1750626617742,0.0612,2189.1,2188.7,0.2244324]
[1750626617959,0.0612,2189.1,2188.7,10.2244324]
[1750626618667,0.55,2189.2,2188.7,0.2244324]
[1750626619044,0.0612,2189.1,2188.7,0.2244324]
[1750626619375,0.0612,2189.1,2188.7,4.79335195]
[1750626619558,0.0612,2189.1,2188.7,0.2244324]
[1750626620144,0.55,2189.2,2188.7,0.2244324]
[1750626620537,0.0612,2189.1,2188.7,0.2244324]
[1750626621346,0.0612,2189.1,2188.7,4.7933534]
[1750626621546,0.0612,2189.1,2188.7,0.2244324]
[1750626622342,0.55,2189.2,2188.7,0.2244324]
[1750626622541,0.0612,2189.1,2188.7,0.2244324]
[1750626624092,0.55,2189.3,2188.7,0.2244324]
[1750626624378,0.0612,2189.2,2188.7,0.2244324]
[1750626624958,0.55,2189.3,2188.7,0.2244324]
[1750626625370,0.6112,2189.3,2188.7,0.2244324]
[1750626625577,2.404,2189.4,2188.7,0.2244324]
[1750626625760,0.55,2189.1,2188.7,0.2244324]
[1750626625944,0.0612,2189.0,2188.7,0.2244324]
[1750626626178,0.55,2189.3,2188.7,0.2244324]
[1750626626372,2.404,2189.4,2188.7,0.2244324]
[1750626626576,0.55,2189.3,2188.7,0.2244324]
[1750626626899,0.55,2189.1,2188.7,0.2244324]
[1750626627055,0.0612,2189.0,2188.7,0.2244324]
[1750626627659,2.404,2189.4,2188.7,0.2244324]